bitfinex-derivatives/quotes_SOLF0:USTF0_20250609
["timestamp","ask_amount","ask_price","bid_price","bid_amount"]
[1749494332459,6.3885,156.44,156.43,0.0423026]
[1749494332753,11.59863993,156.44,156.43,0.0423026]
[1749494336868,6.3898,156.41,156.39,7.59419463]
[1749494337576,6.3898,156.41,156.38,6.3909]
[1749494337765,6.43578377,156.41,156.38,6.43311464]
[1749494338167,6.3902,156.4,156.38,0.04221464]
[1749494338472,0.04598377,156.41,156.38,0.04221464]
[1749494339571,6.43608377,156.41,156.38,6.43311464]
[1749494339774,0.04598377,156.41,156.38,6.43311464]
[1749494340673,0.04598377,156.41,156.38,0.04221464]
[1749494340869,5.20949676,156.4,156.38,0.04221464]
[1749494341176,0.04598377,156.41,156.38,0.04221464]
[1749494341367,6.3906,156.39,156.38,0.04221464]
[1749494341567,7.6401784,156.41,156.38,0.04221464]
[1749494341969,6.3906,156.39,156.38,0.04221464]
[1749494342269,12.79144888,156.39,156.32,7.59419463]
[1749494342469,5.19725425,156.38,156.32,7.59419463]
[1749494342666,12.79482714,156.37,156.28,33.34]
[1749494342870,7.59419463,156.35,156.3,6.394]
[1749494343070,0.04448888,156.34,156.31,0.04761269]
[1749494343479,6.3933,156.33,156.31,0.04761269]
[1749494344271,6.3934,156.32,156.31,0.04761269]
[1749494346480,6.3948,156.29,156.25,43.14199463]
[1749494346674,6.3948,156.29,156.25,40.93419463]
[1749494346873,6.3948,156.29,156.24,6.3964]
[1749494346874,7.59419463,156.29,156.24,6.3964]
[1749494347068,7.59419463,156.27,156.2,7.59419463]
[1749494347577,0.04743922,156.25,156.22,0.041118]
[1749494347783,0.04843303,156.25,156.22,0.04698704]
[1749494348281,0.04843303,156.25,156.23,6.3971]
[1749494348682,0.04843303,156.25,156.24,6.3967]
[1749494349978,0.04843303,156.25,156.22,0.04698704]
[1749494350984,6.44503303,156.25,156.22,6.44418704]
[1749494351381,0.04843303,156.25,156.22,0.04698704]
[1749494351986,6.44493303,156.25,156.22,0.04698704]
[1749494352585,6.44493303,156.25,156.22,6.44448704]
[1749494352888,6.44493303,156.25,156.22,0.04698704]
[1749494354493,0.04843303,156.25,156.22,6.44448704]
[1749494354689,0.04843303,156.25,156.22,0.04698704]
[1749494355286,0.04843303,156.25,156.23,6.3971]
[1749494355490,0.04843303,156.25,156.22,0.04698704]
[1749494357788,6.397,156.24,156.22,0.04698704]
[1749494358491,6.3971,156.23,156.22,0.04698704]
[1749494362593,6.3984,156.2,156.17,6.3993]
[1749494363392,6.3982,156.21,156.18,6.3991]
[1749494363594,6.4388113,156.21,156.18,6.4443643]
[1749494364190,6.3984,156.2,156.18,0.0452643]
[1749494364498,0.0406113,156.21,156.18,0.0452643]
[1749494364992,6.3987,156.19,156.18,0.0452643]
[1749494372798,33.46,156.2,156.18,0.0452643]
[1749494373687,39.8587,156.2,156.18,0.0452643]
[1749494373889,33.46,156.2,156.18,0.0452643]
[1749494374090,41.05419463,156.2,156.18,0.0452643]
[1749494374299,6.3988,156.19,156.18,0.0452643]
[1749494379503,43.24619463,156.2,156.12,33.44]
[1749494379699,7.59419463,156.17,156.11,7.59419463]
[1749494379895,7.59419463,156.17,156.1,7.59419463]
[1749494380096,7.59419463,156.15,156.09,35.3366]
[1749494380302,7.59419463,156.15,156.09,33.1]
[1749494380607,0.04082092,156.14,156.1,0.04578717]
[1749494381400,7.59419463,156.13,156.1,0.04578717]
[1749494381797,6.402,156.11,156.1,0.04578717]
[1749494382205,6.4018,156.12,156.1,0.04578717]
[1749494383004,6.402,156.11,156.1,0.04578717]
[1749494385207,13.99619463,156.11,156.1,0.04578717]
[1749494386406,6.402,156.11,156.1,0.04578717]
[1749494388104,40.69419463,156.12,156.06,6.404]
[1749494388301,7.59419463,156.1,156.05,6.4043]
[1749494388702,6.4034,156.08,156.05,6.4043]
[1749494388903,7.59419463,156.1,156.05,6.4043]
[1749494389107,0.04255493,156.09,156.06,0.04383844]
[1749494389301,6.4036,156.07,156.06,0.04383844]
[1749494392406,6.4034,156.08,156.06,0.04383844]
[1749494392811,0.04255493,156.09,156.06,0.04383844]
[1749494393304,6.44535493,156.09,156.07,6.4034]
[1749494394000,0.04255493,156.09,156.07,6.4034]
[1749494394611,6.44565493,156.09,156.07,6.4034]
[1749494395705,0.04255493,156.09,156.08,6.4032]
[1749494398010,0.04255493,156.09,156.08,13.99739463]
[1749494400315,2.1677,156.15,156.08,7.59419463]
[1749494401104,2.1677,156.15,156.11,6.4017]
[1749494401311,2.20851269,156.15,156.11,0.04634493]
[1749494402216,6.401,156.14,156.12,6.4014]
[1749494402814,6.401,156.14,156.11,6.44824493]
[1749494403516,7.59419463,156.14,156.11,0.04634493]
[1749494404016,7.59419463,156.14,156.08,6.48863092]
[1749494404218,6.4015,156.13,156.08,6.48863092]
[1749494404918,6.4015,156.13,156.1,6.4021]
[1749494405113,6.4015,156.13,156.09,0.0410813]
[1749494405512,6.4015,156.13,156.1,6.4021]
[1749494405913,6.4015,156.13,156.1,6.4023]
[1749494406515,6.4015,156.13,156.11,6.4019]
[1749494408525,0.04081269,156.15,156.13,6.4008]
[1749494409017,0.04081269,156.15,156.12,0.04133117]
[1749494409218,6.44141269,156.15,156.12,6.44273117]
[1749494409516,6.44141269,156.15,156.12,0.04133117]
[1749494409917,6.44141269,156.15,156.12,6.44273117]
[1749494410113,6.44141269,156.15,156.12,0.04133117]
[1749494410321,0.04081269,156.15,156.12,0.04133117]
[1749494410618,0.04081269,156.15,156.13,6.4008]
[1749494411016,0.04081269,156.15,156.13,7.59419463]
[1749494411215,0.04081269,156.15,156.14,6.4008]
[1749494412515,358.59419463,156.32,156.19,6.3985]
[1749494412712,2.1082,156.24,156.15,33.26]
[1749494412914,7.59419463,156.23,156.16,7.59419463]
[1749494413113,9.90299463,156.23,156.16,7.59419463]
[1749494413311,7.59419463,156.21,156.13,40.85419463]
[1749494413520,0.04148128,156.19,156.15,0.04495473]
[1749494413713,0.04148128,156.19,156.15,6.44535473]
[1749494414821,6.3992,156.18,156.15,6.44535473]
[1749494417623,6.3997,156.17,156.15,0.04495473]
[1749494418325,6.4,156.16,156.15,0.04495473]
[1749494422226,6.401,156.14,156.11,13.99609463]
[1749494422524,12.71192933,156.16,156.1,33.26]
[1749494422727,6.4017,156.12,156.09,2.304]
[1749494423131,6.4021,156.11,156.09,0.04598961]
[1749494424428,6.44890225,156.12,156.09,6.44878961]
[1749494425132,6.402,156.11,156.09,6.44878961]
[1749494425727,0.04710225,156.12,156.09,0.04598961]
[1749494425728,6.4024,156.1,156.09,0.04598961]
[1749494426028,0.04710225,156.12,156.09,0.04598961]
[1749494426928,0.04710225,156.12,156.1,6.4021]
[1749494427433,0.04710225,156.12,156.11,6.402]
[1749494443238,6.461,156.18,156.14,6.4004]
[1749494443444,5.13503443,156.17,156.11,41.41419463]
[1749494443648,5.13503443,156.16,156.11,41.41419463]
[1749494443944,4.2345,156.18,156.11,41.41419463]
[1749494444146,0.04052971,156.16,156.14,6.4005]
[1749494444540,0.04052971,156.16,156.13,0.0487444]
[1749494444744,6.44072971,156.16,156.14,6.4005]
[1749494445255,0.04052971,156.16,156.14,6.4005]
[1749494447352,6.44052971,156.16,156.14,6.4005]
[1749494448851,0.04052971,156.16,156.14,6.4005]
[1749494449552,6.44052971,156.16,156.14,6.4005]
[1749494451150,0.04052971,156.16,156.14,6.4005]
[1749494451350,0.04052971,156.16,156.15,6.4003]
[1749494453853,0.04052971,156.16,156.14,6.4006]
[1749494455152,6.44052971,156.16,156.14,6.4006]
[1749494456252,0.04052971,156.16,156.13,0.0487444]
[1749494457658,6.4003,156.15,156.13,6.4498444]
[1749494458561,6.4003,156.15,156.13,0.0487444]
[1749494459053,6.4003,156.15,156.13,6.4498444]
[1749494460064,6.4008,156.14,156.13,0.0487444]
[1749494463465,6.4005,156.15,156.13,0.0487444]
[1749494463862,0.04052971,156.16,156.14,6.4008]
[1749494464061,6.44072971,156.16,156.13,0.0487444]
[1749494464466,6.44072971,156.16,156.13,6.4496444]
[1749494465167,11.53530954,156.15,156.13,0.0487444]
[1749494465368,6.4005,156.15,156.13,0.0487444]
[1749494467572,6.4005,156.15,156.13,6.4497444]
[1749494469174,6.4008,156.14,156.13,0.0487444]
[1749494469469,0.04052971,156.16,156.13,0.0487444]
[1749494469670,5.13319726,156.15,156.13,0.0487444]
[1749494469973,6.4008,156.14,156.13,0.0487444]
[1749494470972,0.04052971,156.16,156.13,0.0487444]
[1749494471170,5.14171138,156.15,156.13,0.0487444]
[1749494471466,0.04052971,156.16,156.13,0.0487444]
[1749494471673,6.4008,156.14,156.13,0.0487444]
[1749494471874,11.54346894,156.14,156.13,0.0487444]
[1749494472067,6.4008,156.14,156.13,0.0487444]
[1749494472268,11.54494973,156.14,156.13,0.0487444]
[1749494472573,6.4008,156.14,156.13,0.0487444]
[1749494472773,11.54534609,156.14,156.13,0.0487444]
[1749494472974,11.54547873,156.14,156.13,0.0487444]
[1749494473876,5.14516568,156.14,156.13,0.0487444]
[1749494474077,6.4006,156.15,156.13,0.0487444]
[1749494474576,5.1455716,156.14,156.13,0.0487444]
[1749494475171,6.4006,156.15,156.13,0.0487444]
[1749494475367,6.4008,156.14,156.13,0.0487444]
[1749494475566,11.54653325,156.14,156.13,0.0487444]
[1749494475766,6.4008,156.14,156.13,0.0487444]
[1749494477273,6.402,156.11,156.1,2.3094]
[1749494477577,6.402,156.11,156.08,33.5]
[1749494478078,6.5478,156.13,156.05,41.09419463]
[1749494478079,7.59419463,156.12,156.05,41.09419463]
[1749494478280,0.04551467,156.1,156.07,0.04726319]
[1749494479078,6.4031,156.09,156.07,0.04726319]
[1749494480070,6.4032,156.08,156.07,0.04726319]
[1749494480270,6.4032,156.08,156.05,39.9043]
[1749494481178,6.404,156.06,156.05,0.04644404]
[1749494481382,2.21,156.07,156.05,0.04644404]
[1749494481776,2.21,156.07,155.98,13.03124267]
[1749494481975,7.59419463,156.06,155.99,7.59419463]
[1749494482878,0.043813,156.04,156.01,0.04722152]
[1749494483483,0.043813,156.04,156.01,6.45292152]
[1749494483779,0.043813,156.04,156.01,0.04722152]
[1749494484177,6.4053,156.03,156.01,0.04722152]
[1749494484768,7.63800763,156.04,155.99,6.4066]
[1749494485676,6.4057,156.02,156.0,0.04561898]
[1749494486682,6.4061,156.01,156.0,0.04561898]
[1749494487983,8.5206,156.01,156.0,0.04561898]
[1749494489180,2.1145,156.01,156.0,0.04561898]
[1749494489878,2.202713,156.04,156.0,0.04561898]
[1749494490083,2.202713,156.04,156.01,6.4061]
[1749494490284,2.202713,156.04,156.0,0.04561898]
[1749494490686,2.202713,156.04,156.02,6.4056]
[1749494490986,2.202713,156.04,156.0,0.04561898]
[1749494491187,2.202713,156.04,156.0,7.63981361]
[1749494491987,2.202713,156.04,156.02,6.4054]
[1749494492175,2.202713,156.04,156.0,7.63981361]
[1749494492579,2.202713,156.04,156.01,6.4058]
[1749494492781,8.607613,156.04,156.0,0.04561898]
[1749494493278,2.202713,156.04,156.0,6.45191898]
[1749494493476,6.4055,156.03,156.0,6.45191898]
[1749494495283,8.607713,156.04,156.01,6.406]
[1749494496286,2.202713,156.04,156.0,0.04561898]
[1749494496688,2.202713,156.04,156.0,7.63981361]
[1749494497282,8.607613,156.04,156.01,6.4058]
[1749494497585,2.202713,156.04,156.0,7.63981361]
[1749494498085,8.607713,156.04,156.01,6.4058]
[1749494498287,2.202713,156.04,156.0,7.63981361]
[1749494498586,2.202713,156.04,156.01,6.4057]
[1749494498789,2.202713,156.04,156.0,7.63981361]
[1749494499288,2.202713,156.04,156.03,6.4053]
[1749494501586,0.043813,156.04,156.03,6.4053]
[1749494503986,6.4029,156.09,156.06,6.4038]
[1749494504194,2.2294,156.1,156.05,7.59419463]
[1749494504593,6.4034,156.08,156.05,7.59419463]
[1749494504793,6.4034,156.08,156.05,13.99839463]
[1749494504993,6.403,156.09,156.05,7.59419463]
[1749494505189,0.04884591,156.08,156.05,7.63763248]
[1749494505792,0.04884591,156.08,156.06,6.404]
[1749494507396,6.45204591,156.08,156.06,6.404]
[1749494508598,0.04884591,156.08,156.06,6.404]
[1749494508894,6.45214591,156.08,156.06,6.404]
[1749494509389,0.04884591,156.08,156.05,14.04193248]
[1749494509589,6.45224591,156.08,156.05,14.04193248]
[1749494510294,6.45224591,156.08,156.06,6.4039]
[1749494510590,0.04884591,156.08,156.06,6.4039]
[1749494512892,0.04884591,156.08,156.07,6.4036]
[1749494517798,0.04884591,156.08,156.07,13.99779463]
[1749494526109,0.04884591,156.08,156.07,6.4036]
[1749494526312,0.04884591,156.08,156.07,13.99779463]
[1749494527707,0.04884591,156.08,156.06,6.4037]
[1749494528013,0.04884591,156.08,156.05,7.63763248]
[1749494528014,0.04884591,156.08,156.05,0.04343785]
[1749494528409,7.64304054,156.08,156.05,0.04343785]
[1749494528711,7.64304054,156.08,156.01,33.4]
[1749494528907,7.64304054,156.08,156.02,6.4055]
[1749494528908,6.4046,156.05,156.02,6.4055]
[1749494529308,0.04884591,156.08,156.01,33.4]
[1749494529509,7.59419463,156.08,156.01,33.4]
[1749494529806,7.59419463,156.08,156.03,0.04589107]
[1749494529807,0.04414382,156.06,156.03,0.04589107]
[1749494530309,6.44824382,156.06,156.03,0.04589107]
[1749494531112,0.04414382,156.06,156.03,0.04589107]
[1749494531719,0.04414382,156.06,156.04,6.4046]
[1749494532015,14.04243845,156.06,156.03,0.04589107]
[1749494532313,14.04243845,156.06,156.03,6.45099107]
[1749494532514,0.04414382,156.06,156.03,0.04589107]
[1749494532818,0.04414382,156.06,156.05,6.4045]
[1749494533323,0.04414382,156.06,156.03,0.04589107]
[1749494533618,6.44834382,156.06,156.04,6.4047]
[1749494534420,6.44834382,156.06,156.03,6.45099107]
[1749494534615,6.4045,156.05,156.03,6.45099107]
[1749494535222,6.4045,156.05,156.03,0.04589107]
[1749494535919,6.4049,156.04,156.03,0.04589107]
[1749494537418,13.99909463,156.04,156.03,0.04589107]
[1749494537720,16.25869463,156.04,156.03,0.04589107]
[1749494540423,8.6645,156.04,156.03,0.04589107]
[1749494540623,2.2596,156.04,156.03,0.04589107]
[1749494543621,0.04414382,156.06,156.03,0.04589107]
[1749494544123,6.44854382,156.06,156.03,6.45089107]
[1749494546125,6.44854382,156.06,156.04,6.4048]
[1749494546327,0.04414382,156.06,156.04,6.4048]
[1749494546529,0.04414382,156.06,156.03,0.04589107]
[1749494546822,6.44854382,156.06,156.03,0.04589107]
[1749494547217,6.44854382,156.06,156.03,6.45089107]
[1749494548627,6.44854382,156.06,156.04,6.4049]
[1749494549224,0.04414382,156.06,156.04,6.4049]
[1749494550031,6.44824382,156.06,156.03,6.45099107]
[1749494550225,6.44824382,156.06,156.03,0.04589107]
[1749494551630,6.44824382,156.06,156.03,6.45109107]
[1749494551831,6.4049,156.04,156.03,0.04589107]
[1749494552922,6.4059,156.02,156.0,6.4063]
[1749494553331,6.4055,156.03,156.0,6.4063]
[1749494553835,6.44998375,156.03,156.0,6.4281983]
[1749494554133,6.4058,156.02,156.0,6.4281983]
[1749494554324,0.04448375,156.03,156.0,6.4281983]
[1749494554833,6.44998375,156.03,156.0,6.4281983]
[1749494556227,6.4058,156.02,156.0,6.4281983]
[1749494556429,6.4058,156.02,156.0,0.0218983]
[1749494556828,6.4061,156.01,156.0,0.0218983]
[1749494557932,6.4059,156.02,156.0,0.0218983]
[1749494558433,0.04448375,156.03,156.0,0.0218983]
[1749494558636,6.4061,156.01,156.0,0.0218983]
[1749494559032,4.43908375,156.03,156.0,0.0218983]
[1749494559237,6.4059,156.02,156.0,6.4283983]
[1749494559534,6.4059,156.02,156.0,0.0218983]
[1749494560224,6.4061,156.01,156.0,0.0218983]
[1749494561931,6.4058,156.02,156.0,0.0218983]
[1749494563134,6.4061,156.01,156.0,0.0218983]
[1749494564127,6.4059,156.02,156.0,0.0218983]
[1749494564926,6.4061,156.01,156.0,0.0218983]
[1749494565236,12.03327838,156.03,156.0,0.0218983]
[1749494565633,6.406,156.02,156.0,0.0218983]
[1749494570640,6.4061,156.01,156.0,0.0218983]
[1749494574036,6.4059,156.02,156.0,0.0218983]
[1749494577541,6.4059,156.02,156.0,6.4283983]
[1749494579246,4.88808781,156.01,156.0,6.4283983]
[1749494579445,4.88808781,156.02,156.01,6.4059]
[1749494579642,10.09660261,156.02,156.01,6.4059]
[1749494579949,10.09660261,156.02,156.0,0.0218983]
[1749494580247,11.29388781,156.02,156.0,6.4281983]
[1749494580746,4.88808781,156.02,156.0,6.4281983]
[1749494581059,6.44998375,156.03,156.01,6.4061]
[1749494581249,10.09684225,156.02,156.0,0.0218983]
[1749494581441,4.88808781,156.02,156.0,0.0218983]
[1749494581642,4.88808781,156.01,156.0,6.4280983]
[1749494585051,4.88808781,156.02,156.0,6.4280983]
[1749494585853,5.20836138,156.01,156.0,6.4280983]
[1749494586254,5.20836138,156.01,156.0,11.31618611]
[1749494586454,0.04448375,156.03,156.02,6.4057]
[1749494588344,0.04448375,156.03,156.02,11.29378781]
[1749494588749,4.88808781,156.07,156.05,6.4042]
[1749494589156,11.29158781,156.08,156.04,4.88808781]
[1749494589351,5.21381488,156.07,156.05,6.4041]
[1749494589552,11.29158781,156.08,156.04,4.88808781]
[1749494589751,11.33289911,156.08,156.04,0.0475829]
[1749494589955,11.33289911,156.08,156.05,6.4044]
[1749494590149,11.33289911,156.08,156.04,4.93567071]
[1749494590952,6.4448113,156.08,156.05,4.88808781]
[1749494591353,6.4448113,156.08,156.04,0.0475829]
[1749494591657,0.0413113,156.08,156.04,0.0475829]
[1749494592154,0.0413113,156.08,156.07,6.4037]
[1749494592461,0.0413113,156.08,156.07,14.03447633]
[1749494593955,225.30187299,156.13,156.11,6.4019]
[1749494594259,225.30187299,156.13,156.09,7.63077633]
[1749494594558,231.70317299,156.13,156.1,6.4022]
[1749494594958,231.74923106,156.13,156.1,6.44861918]
[1749494595464,225.34793106,156.13,156.11,6.402]
[1749494596355,225.34793106,156.13,156.1,6.44871918]
[1749494596663,231.74923106,156.13,156.1,6.44871918]
[1749494597863,225.34793106,156.13,156.11,6.402]
[1749494598568,225.34793106,156.13,156.12,6.4016]
[1749494599062,39.4397,156.17,156.11,7.63077633]
[1749494599265,6.3997,156.17,156.14,6.4007]
[1749494599766,6.4001,156.16,156.13,7.63077633]
[1749494600062,5.22218204,156.18,156.13,14.03167633]
[1749494600265,0.04680789,156.16,156.13,14.08086627]
[1749494600666,6.44700789,156.16,156.13,14.08086627]
[1749494600960,0.04680789,156.16,156.13,14.08086627]
[1749494602667,6.4004,156.15,156.13,14.08086627]
[1749494603266,6.44690789,156.16,156.13,14.08086627]
[1749494604057,6.44690789,156.16,156.14,6.4008]
[1749494604266,0.04680789,156.16,156.13,40.71996627]
[1749494604574,0.04680789,156.16,156.15,14.03117633]
[1749494604866,0.04680789,156.16,156.14,7.63077633]
[1749494605168,0.04680789,156.16,156.14,14.03127633]
[1749494605869,6.44680789,156.16,156.14,7.63077633]
[1749494606067,6.44680789,156.16,156.13,47.12096627]
[1749494606458,6.44680789,156.16,156.14,6.4006]
[1749494608970,0.04680789,156.16,156.14,6.4006]
[1749494609163,0.04680789,156.16,156.13,33.08918994]
[1749494609570,6.4006,156.15,156.13,33.08918994]
[1749494610658,6.4008,156.14,156.13,33.08918994]
[1749494610863,6.4008,156.14,156.13,0.04918994]
[1749494617873,10.8918,156.15,156.13,0.04918994]
[1749494618074,4.4913,156.15,156.13,0.04918994]
[1749494619076,6.4008,156.14,156.13,0.04918994]
[1749494623174,4.4913,156.15,156.13,0.04918994]
[1749494623772,6.4008,156.14,156.13,0.04918994]
[1749494624976,10.8918,156.15,156.13,6.45038994]
[1749494625280,10.8918,156.15,156.13,0.04918994]
[1749494625578,2.2362,156.15,156.13,6.45008994]
[1749494625970,0.04680789,156.16,156.15,6.4004]
[1749494626680,0.04680789,156.16,156.13,0.04918994]
[1749494627371,0.04680789,156.16,156.15,6.4004]
[1749494628078,0.04680789,156.16,156.15,14.03117633]
[1749494628282,7.63077633,156.22,156.15,7.63077633]
[1749494628576,5.22250662,156.21,156.15,7.63077633]
[1749494628770,6.3987,156.2,156.17,6.3996]
[1749494629074,5.22250662,156.21,156.15,7.63077633]
[1749494629278,6.44431942,156.2,156.17,6.3995]
[1749494630073,0.04571942,156.2,156.18,6.3991]
[1749494630580,0.04571942,156.2,156.19,6.3988]
[1749494630878,2.2526,156.24,156.19,7.63077633]
[1749494631077,5.23360559,156.25,156.19,7.63077633]
[1749494631370,2.132,156.26,156.21,7.63077633]
[1749494631572,5.25055203,156.25,156.21,7.63077633]
[1749494631768,2.132,156.26,156.21,7.63077633]
[1749494631971,5.29253172,156.25,156.22,0.04122559]
[1749494632167,0.04063698,156.25,156.22,0.04122559]
[1749494632378,0.04063698,156.25,156.23,6.3969]
[1749494632577,5.2928408,156.25,156.23,6.3969]
[1749494633678,0.04063698,156.25,156.23,6.3969]
[1749494634378,5.29429047,156.25,156.23,6.3969]
[1749494634976,5.2936705,156.25,156.23,6.3969]
[1749494635681,5.29272531,156.25,156.23,6.3969]
[1749494635880,0.04063698,156.25,156.23,6.3969]
[1749494636075,0.04063698,156.25,156.24,6.3967]
[1749494636377,0.04063698,156.25,156.24,14.02747633]
[1749494642381,0.04063698,156.25,156.24,6.3967]
[1749494642580,0.04063698,156.25,156.24,14.02747633]
[1749494643175,0.04063698,156.25,156.24,7.63077633]
[1749494643370,0.04063698,156.25,156.23,7.63077633]
[1749494644483,0.04063698,156.25,156.23,14.02767633]
[1749494646583,0.04063698,156.25,156.24,6.3967]
[1749494648085,0.04063698,156.25,156.23,14.02767633]
[1749494650082,0.04063698,156.25,156.23,7.63077633]
[1749494650285,0.04063698,156.25,156.22,39.41862559]
[1749494650483,6.3967,156.24,156.22,39.41862559]
[1749494651284,6.43713698,156.25,156.22,39.41862559]
[1749494651688,6.3968,156.24,156.22,39.41862559]
[1749494652993,6.43713698,156.25,156.22,39.41862559]
[1749494655494,6.43713698,156.25,156.23,6.397]
[1749494656303,6.43713698,156.25,156.22,39.41852559]
[1749494658105,0.04063698,156.25,156.23,7.63077633]
[1749494658706,0.04063698,156.25,156.24,6.3967]
[1749494660913,8.5114,156.29,156.26,6.3956]
[1749494661106,8.5114,156.29,156.23,7.63077633]
[1749494661107,2.1167,156.29,156.22,32.98]
[1749494661307,2.1167,156.29,156.24,7.63077633]
[1749494661506,6.3953,156.28,156.25,6.396]
[1749494661911,6.44391195,156.28,156.25,6.43784707]
[1749494663815,6.44391195,156.28,156.26,6.3958]
[1749494665913,6.44391195,156.28,156.25,6.43794707]
[1749494669220,6.44391195,156.28,156.26,4.87184957]
[1749494670019,6.3955,156.27,156.26,4.87184957]
[1749494671214,6.44391195,156.28,156.26,4.87184957]
[1749494674019,6.44391195,156.28,156.26,11.26764957]
[1749494674525,5.31112033,156.27,156.26,11.26764957]
[1749494675620,11.70662033,156.27,156.26,4.87184957]
[1749494675823,5.31112033,156.27,156.26,4.87184957]
[1749494676717,11.70662033,156.27,156.25,6.43794707]
[1749494676923,6.3955,156.27,156.25,11.30979664]
[1749494677321,6.3955,156.27,156.26,4.87184957]
[1749494677522,11.71073434,156.27,156.26,4.87184957]
[1749494678122,6.3959,156.26,156.25,0.04184707]
[1749494678331,11.71113434,156.26,156.25,0.04184707]
[1749494679614,10.18708391,156.26,156.2,4.87184957]
[1749494679819,4.87184957,156.24,156.2,4.87184957]
[1749494680022,5.31523434,156.23,156.2,4.87184957]
[1749494680221,6.3972,156.23,156.2,11.27014957]
[1749494680522,5.31467281,156.22,156.2,11.31430401]
[1749494680720,6.44587868,156.23,156.2,11.31430401]
[1749494680924,5.31509106,156.22,156.2,11.31430401]
[1749494681121,6.44587868,156.23,156.2,11.31430401]
[1749494681320,5.31381332,156.22,156.21,4.87184957]
[1749494681724,6.3975,156.22,156.21,4.87184957]
[1749494682026,11.71092717,156.22,156.21,4.87184957]
[1749494682230,6.3975,156.22,156.21,4.87184957]
[1749494682427,11.69934265,156.22,156.21,4.87184957]
[1749494682627,11.69934265,156.22,156.2,11.31430401]
[1749494682829,6.3975,156.22,156.2,11.31430401]
[1749494683231,6.44597868,156.23,156.2,11.31430401]
[1749494683528,0.04867868,156.23,156.2,11.31430401]
[1749494684930,6.44597868,156.23,156.21,4.87184957]
[1749494685232,6.44597868,156.23,156.21,11.26974957]
[1749494685427,6.44597868,156.23,156.21,6.3979]
[1749494685624,6.44597868,156.23,156.2,4.91600401]
[1749494686533,6.44597868,156.23,156.2,11.31410401]
[1749494688333,6.3976,156.22,156.2,11.31410401]
[1749494696238,6.3976,156.22,156.21,4.87184957]
[1749494696835,6.3976,156.22,156.2,6.44225444]
[1749494697030,6.3976,156.22,156.21,4.87184957]
[1749494699838,6.3979,156.21,156.2,4.91600401]
[1749494700236,6.3979,156.21,156.2,0.04415444]
[1749494702239,6.3977,156.22,156.2,4.91600401]
[1749494702538,0.04867868,156.23,156.21,4.87184957]
[1749494703141,6.44587868,156.23,156.21,11.26954957]
[1749494703329,6.44587868,156.23,156.21,4.87184957]
[1749494703533,0.04867868,156.23,156.2,4.91600401]
[1749494704338,0.04867868,156.23,156.21,4.87184957]
[1749494704734,6.44607868,156.23,156.21,11.26974957]
[1749494704936,6.44607868,156.23,156.21,4.87184957]
[1749494705838,6.3975,156.22,156.21,4.87184957]
[1749494711240,6.398,156.21,156.2,0.04415444]
[1749494712547,6.398,156.21,156.2,4.91600401]
[1749494713348,6.398,156.21,156.2,0.04415444]
[1749494714240,0.04867868,156.23,156.2,4.91600401]
[1749494714540,0.04867868,156.23,156.21,4.87184957]
[1749494714842,6.44607868,156.23,156.21,11.26954957]
[1749494715046,6.44607868,156.23,156.21,4.87184957]
[1749494717748,6.3976,156.22,156.2,6.44225444]
[1749494717946,6.3976,156.22,156.2,4.91600401]
[1749494718147,6.3976,156.22,156.2,0.04415444]
[1749494718347,6.3976,156.22,156.2,4.91600401]
[1749494719649,6.3976,156.22,156.2,11.31420401]
[1749494722452,6.3976,156.22,156.21,4.87184957]
[1749494722645,11.70592836,156.22,156.21,4.87184957]
[1749494723152,6.3976,156.22,156.21,4.87184957]
[1749494723453,11.70651351,156.22,156.21,4.87184957]
[1749494723751,6.44597868,156.23,156.21,11.26974957]
[1749494724051,5.30726447,156.22,156.21,11.26974957]
[1749494725352,5.30726447,156.22,156.21,4.87184957]
[1749494726154,5.30726447,156.22,156.2,6.44235444]
[1749494726351,6.44597868,156.23,156.2,11.31420401]
[1749494726548,5.30941257,156.22,156.2,11.31420401]
[1749494726749,5.30920169,156.21,156.2,6.44235444]
[1749494726950,5.30920169,156.21,156.2,11.31724898]
[1749494728653,0.04867868,156.23,156.21,6.3977]
[1749494728854,5.30032399,156.22,156.21,11.27259454]
[1749494731948,5.30032399,156.22,156.21,6.3977]
[1749494732349,5.30032399,156.22,156.21,11.27259454]
[1749494734057,5.30032399,156.22,156.21,6.3977]
[1749494734358,5.30032399,156.22,156.21,11.27259454]
[1749494740156,5.30032399,156.22,156.21,4.87489454]
[1749494740460,5.30032399,156.22,156.2,0.04415444]
[1749494740760,5.31886956,156.21,156.2,0.04415444]